bitfinex-derivatives/quotes_BNBF0:USTF0_20260110
["timestamp","ask_amount","ask_price","bid_price","bid_amount"]
[1768063332018,0.19139072,909.78,909.03,0.69128484]
[1768063332217,0.19139072,909.78,908.78,4.11810277]
[1768063332417,0.19139072,909.78,908.79,0.69068943]
[1768063332622,0.19139072,909.78,908.8,0.69068943]
[1768063332822,0.19139072,909.78,908.81,0.69068943]
[1768063333122,0.19139072,909.78,908.82,0.69068943]
[1768063333318,0.19139072,909.78,908.83,0.69068943]
[1768063333617,0.19139072,909.78,908.84,0.69068943]
[1768063333817,0.19139072,909.78,908.85,0.69068943]
[1768063334020,0.19139072,909.78,908.86,0.69068943]
[1768063334221,0.19139072,909.78,908.87,0.69068943]
[1768063334421,0.19139072,909.78,908.88,0.69068943]
[1768063334718,0.19139072,909.78,908.89,0.69068943]
[1768063334919,0.19139072,909.78,908.9,0.69068943]
[1768063335122,0.19139072,909.78,908.91,0.69068943]
[1768063335318,0.19139072,909.78,908.78,4.11810277]
[1768063335319,0.19139072,909.78,908.92,0.69068943]
[1768063335519,0.19139072,909.78,908.93,0.69068943]
[1768063335719,0.19139072,909.78,908.78,4.11810277]
[1768063335720,0.19139072,909.78,908.94,0.69068943]
[1768063335918,0.19139072,909.78,908.95,0.69068943]
[1768063336223,0.19139072,909.78,908.96,0.69068943]
[1768063336419,0.19139072,909.78,908.97,0.69068943]
[1768063336722,0.19139072,909.78,908.98,0.69068943]
[1768063336924,0.19139072,909.78,908.99,0.69068943]
[1768063337124,0.19139072,909.78,909.0,0.69068943]
[1768063337321,0.19139072,909.78,908.78,4.11810277]
[1768063337526,0.19139072,909.78,908.79,0.6902045]
[1768063337724,0.19139072,909.78,908.8,0.6902045]
[1768063338025,0.19139072,909.78,908.81,0.6902045]
[1768063338224,0.19139072,909.78,908.82,0.6902045]
[1768063338421,0.19139072,909.78,908.83,0.6902045]
[1768063338622,0.19139072,909.78,908.84,0.6902045]
[1768063338825,0.19139072,909.78,908.85,0.6902045]
[1768063339023,0.19139072,909.78,908.86,0.6902045]
[1768063339226,0.19139072,909.78,908.87,0.6902045]
[1768063339524,0.19139072,909.78,908.88,0.6902045]
[1768063339725,0.19139072,909.78,908.89,0.6902045]
[1768063339924,0.19139072,909.78,908.9,0.6902045]
[1768063340122,0.19139072,909.78,908.91,0.6902045]
[1768063340324,0.19139072,909.78,908.92,0.6902045]
[1768063340521,0.19139072,909.78,908.93,0.6902045]
[1768063340725,0.19139072,909.78,908.94,0.6902045]
[1768063340927,0.19139072,909.78,908.95,0.6902045]
[1768063341125,0.19139072,909.78,908.96,0.6902045]
[1768063341322,0.19139072,909.78,908.97,0.6902045]
[1768063341622,0.19139072,909.78,908.98,0.6902045]
[1768063341921,0.19139072,909.78,908.99,0.6902045]
[1768063342127,0.19139072,909.78,909.0,0.6902045]
[1768063342322,0.19139072,909.78,909.01,0.6902045]
[1768063342522,0.19139072,909.78,909.02,0.6902045]
[1768063342725,0.19139072,909.78,909.03,0.6902045]
[1768063343026,0.19139072,909.78,909.04,0.6902045]
[1768063343223,0.19139072,909.78,909.05,0.6902045]
[1768063343426,0.19139072,909.78,909.06,0.6902045]
[1768063343626,0.19139072,909.78,909.07,0.6902045]
[1768063343824,0.19139072,909.78,909.08,0.6902045]
[1768063344127,0.19139072,909.78,909.09,0.6902045]
[1768063344326,0.19139072,909.78,909.1,0.6902045]
[1768063344522,0.19139072,909.78,909.11,0.6902045]
[1768063344822,0.19139072,909.78,909.12,0.6902045]
[1768063345026,0.19139072,909.78,908.84,0.82510904]
[1768063345027,0.19139072,909.78,909.13,0.6902045]
[1768063345227,0.19139072,909.78,908.84,0.82510904]
[1768063345422,0.19139072,909.78,908.85,0.6899855]
[1768063345625,0.19139072,909.78,908.86,0.6899855]
[1768063345826,0.19139072,909.78,908.87,0.6899855]
[1768063346024,0.19139072,909.78,908.88,0.6899855]
[1768063346224,0.19139072,909.78,908.89,0.6899855]
[1768063346423,0.19139072,909.78,908.9,0.6899855]
[1768063346624,0.19139072,909.78,908.84,0.82510904]
[1768063346625,0.19139072,909.78,908.91,0.6899855]
[1768063346825,0.19139072,909.78,908.92,0.6899855]
[1768063347123,0.19139072,909.78,908.93,0.6899855]
[1768063347423,0.19139072,909.78,908.94,0.6899855]
[1768063347626,0.19139072,909.78,908.95,0.6899855]
[1768063347827,0.19139072,909.78,908.96,0.6899855]
[1768063348024,0.19139072,909.78,908.97,0.6899855]
[1768063348229,0.19139072,909.78,908.98,0.6899855]
[1768063348425,0.19139072,909.78,908.99,0.6899855]
[1768063348626,0.19139072,909.78,909.0,0.6899855]
[1768063348825,0.19139072,909.78,909.01,0.6899855]
[1768063349025,0.19139072,909.78,909.02,0.6899855]
[1768063349229,0.19139072,909.78,909.03,0.6899855]
[1768063349426,0.19139072,909.78,909.04,0.6899855]
[1768063349626,0.19139072,909.78,909.05,0.6899855]
[1768063349830,0.19139072,909.78,909.06,0.6899855]
[1768063350032,0.19139072,909.78,909.07,0.6899855]
[1768063350330,0.19139072,909.78,909.08,0.6899855]
[1768063350530,0.19139072,909.78,909.09,0.6899855]
[1768063350727,0.19139072,909.78,909.1,0.6899855]
[1768063350926,0.19139072,909.78,909.11,0.6899855]
[1768063351231,0.19139072,909.78,909.12,0.6899855]
[1768063351428,0.19139072,909.78,909.13,0.6899855]
[1768063351632,0.19139072,909.78,909.14,0.6899855]
[1768063351927,0.19139072,909.78,909.05,1.609]
[1768063352127,0.19139072,909.78,909.06,0.68942438]
[1768063352331,0.19139072,909.78,909.07,0.68942438]
[1768063352526,0.19139072,909.78,909.08,0.68942438]
[1768063352730,0.19139072,909.78,909.09,0.68942438]
[1768063353031,0.19139072,909.78,909.1,0.68942438]
[1768063353230,0.19139072,909.78,909.11,0.68942438]
[1768063353431,0.19139072,909.78,909.12,0.68942438]
[1768063353628,0.19139072,909.78,909.13,0.68942438]
[1768063353828,0.19139072,909.78,909.14,0.68942438]
[1768063354033,0.19139072,909.78,909.05,1.609]
[1768063354232,0.19139072,909.78,909.06,0.68945411]
[1768063354433,0.19139072,909.78,909.07,0.68945411]
[1768063354732,0.19139072,909.78,909.08,0.68945411]
[1768063354933,0.19139072,909.78,909.09,0.68945411]
[1768063355135,0.19139072,909.78,909.1,0.68945411]
[1768063355428,0.19139072,909.78,909.11,0.68945411]
[1768063355632,0.19139072,909.78,909.12,0.68945411]
[1768063355828,0.19139072,909.78,909.13,0.68945411]
[1768063356133,0.19139072,909.78,909.14,0.68945411]
[1768063356334,0.19139072,909.78,909.05,1.609]
[1768063356535,0.19139072,909.78,909.06,0.68951306]
[1768063356834,0.19139072,909.78,909.07,0.68951306]
[1768063357033,0.19139072,909.78,909.08,0.68951306]
[1768063357230,0.19139072,909.78,909.09,0.68951306]
[1768063357430,0.19139072,909.78,909.1,0.68951306]
[1768063357630,0.19139072,909.78,909.11,0.68951306]
[1768063357832,0.19139072,909.78,909.12,0.68951306]
[1768063358031,0.19139072,909.78,909.13,0.68951306]
[1768063358231,0.19139072,909.78,909.14,0.68951306]
[1768063358437,0.19139072,909.78,909.05,1.609]
[1768063358737,0.19139072,909.78,909.06,0.6895904]
[1768063358937,0.19139072,909.78,909.07,0.6895904]
[1768063359236,0.19139072,909.78,909.08,0.6895904]
[1768063359435,0.19139072,909.78,909.09,0.6895904]
[1768063359633,0.19139072,909.78,909.1,0.6895904]
[1768063359833,0.19139072,909.78,909.11,0.6895904]
[1768063360036,0.19139072,909.78,909.12,0.6895904]
[1768063360237,0.19139072,909.78,909.13,0.6895904]
[1768063360438,0.19139072,909.78,909.14,0.6895904]
[1768063360639,0.19139072,909.78,909.15,0.6895904]
[1768063360839,0.19139072,909.78,909.16,0.6895904]
[1768063361036,0.19139072,909.78,909.05,1.609]
[1768063361236,0.19139072,909.78,909.06,0.68996567]
[1768063361440,0.19139072,909.78,909.07,0.68996567]
[1768063361640,0.19139072,909.78,909.08,0.68996567]
[1768063361841,0.19139072,909.78,909.09,0.68996567]
[1768063362139,0.19139072,909.78,909.1,0.68996567]
[1768063362439,0.19139072,909.78,909.11,0.68996567]
[1768063362637,0.19139072,909.78,909.12,0.68996567]
[1768063362835,0.19139072,909.78,909.13,0.68996567]
[1768063363040,0.19139072,909.78,909.14,0.68996567]
[1768063363239,0.19139072,909.78,909.05,1.609]
[1768063363240,0.19139072,909.78,909.15,0.68996567]
[1768063363442,0.19139072,909.78,909.16,0.68996567]
[1768063363641,0.19139072,909.78,909.17,0.68996567]
[1768063363842,0.19139072,909.78,909.05,1.609]
[1768063364041,0.19139072,909.78,909.06,0.69032905]
[1768063364242,0.19139072,909.78,909.07,0.69032905]
[1768063364441,0.19139072,909.78,909.08,0.69032905]
[1768063364638,0.19139072,909.78,909.09,0.69032905]
[1768063364937,0.19139072,909.78,909.1,0.69032905]
[1768063365144,0.19139072,909.78,909.11,0.69032905]
[1768063365437,0.19139072,909.78,909.12,0.69032905]
[1768063365640,0.19139072,909.78,909.05,1.609]
[1768063365641,0.19139072,909.78,909.13,0.69032905]
[1768063365835,0.19139072,909.78,909.05,1.609]
[1768063365836,0.19139072,909.78,909.14,0.69032905]
[1768063366038,0.19139072,909.78,909.15,0.69032905]
[1768063366237,0.19139072,909.78,909.16,0.69032905]
[1768063366440,0.19139072,909.78,909.17,0.69032905]
[1768063366642,0.19139072,909.78,909.18,0.69032905]
[1768063366937,0.19139072,909.78,909.19,0.69032905]
[1768063367239,0.19139072,909.78,909.2,0.690766]
[1768063367438,0.19139072,909.78,909.05,1.609]
[1768063367639,0.19139072,909.78,909.06,0.690766]
[1768063367836,0.19139072,909.78,909.07,0.690766]
[1768063368039,0.19139072,909.78,909.08,0.690766]
[1768063368339,0.19139072,909.78,909.09,0.690766]
[1768063368642,0.19139072,909.78,909.1,0.690766]
[1768063368942,0.19139072,909.78,909.11,0.690766]
[1768063369141,0.19139072,909.78,909.12,0.690766]
[1768063369438,0.19139072,909.78,909.13,0.690766]
[1768063369637,0.19139072,909.78,909.14,0.690766]
[1768063369841,0.19139072,909.78,909.15,0.690766]
[1768063370039,0.19139072,909.78,909.16,0.690766]
[1768063370238,0.19139072,909.78,909.17,0.690766]
[1768063370441,0.19139072,909.78,909.18,0.690766]
[1768063370642,0.19139072,909.78,909.19,0.690766]
[1768063370839,0.19139072,909.78,909.2,0.690766]
[1768063371043,0.19139072,909.78,909.21,0.690766]
[1768063371343,0.19139072,909.78,909.05,1.609]
[1768063371644,0.19139072,909.78,909.06,0.69108416]
[1768063371844,0.19139072,909.78,909.07,0.69108416]
[1768063372044,0.19139072,909.78,909.08,0.69108416]
[1768063372241,0.19139072,909.78,909.09,0.69108416]
[1768063372440,0.19139072,909.78,909.1,0.69108416]
[1768063372642,0.19139072,909.78,909.11,0.69108416]
[1768063372841,0.19139072,909.78,909.12,0.69108416]
[1768063373141,0.19139072,909.78,909.13,0.69108416]
[1768063373445,0.19139072,909.78,909.14,0.69108416]
[1768063373641,0.19139072,909.78,909.05,1.609]
[1768063373842,0.19139072,909.78,909.06,0.69134343]
[1768063374042,0.19139072,909.78,909.07,0.69134343]
[1768063374246,0.19139072,909.78,909.05,1.609]
[1768063374247,0.19139072,909.78,909.08,0.69134343]
[1768063374545,0.19139072,909.78,909.09,0.69134343]
[1768063374742,0.19139072,909.78,909.1,0.69134343]
[1768063374947,0.19139072,909.78,909.11,0.69134343]
[1768063375141,0.19139072,909.78,909.12,0.69134343]
[1768063375441,0.19139072,909.78,909.13,0.69134343]
[1768063375646,0.19139072,909.78,909.14,0.69134343]
[1768063375846,0.19139072,909.78,909.15,0.69134343]
[1768063376044,0.19139072,909.78,909.16,0.69134343]
[1768063376348,0.19139072,909.78,909.05,1.609]
[1768063376643,0.19139072,909.78,909.06,0.69161628]
[1768063376844,0.19139072,909.78,909.07,0.69161628]
[1768063377042,0.19139072,909.78,909.08,0.69161628]
[1768063377242,0.19139072,909.78,909.09,0.69161628]
[1768063377442,0.19139072,909.78,909.1,0.69161628]
[1768063377645,0.19139072,909.78,909.11,0.69161628]
[1768063377847,2.72679797,910.7,909.12,0.69161628]
[1768063378050,0.19128184,909.89,909.13,0.69161628]
[1768063378246,2.91244,910.05,909.14,0.69161628]
[1768063378445,0.19130865,909.9,909.15,0.69161628]
[1768063378647,0.19130865,909.9,909.16,0.69161628]
[1768063378849,0.19130865,909.9,909.17,0.69161628]
[1768063379048,0.19130865,909.9,909.18,0.69161628]
[1768063379245,0.19130865,909.9,909.19,0.69161628]
[1768063379549,0.19130865,909.9,909.2,0.69161628]
[1768063379748,0.19130865,909.9,909.05,1.609]
[1768063379749,0.19130865,909.9,909.21,0.69161628]
[1768063379948,0.19130865,909.9,909.22,0.69161628]
[1768063380149,0.19130865,909.9,909.23,0.69161628]
[1768063380350,0.19130865,909.9,909.24,0.69161628]
[1768063380546,0.19130865,909.9,909.25,0.69161628]
[1768063380748,0.19130865,909.9,909.05,1.609]
[1768063380947,0.19130865,909.9,909.06,0.69057121]
[1768063381146,0.19130865,909.9,909.07,0.69057121]
[1768063381346,0.19130865,909.9,909.08,0.69057121]
[1768063381546,0.19130865,909.9,909.09,0.69057121]
[1768063381748,0.19130865,909.9,909.1,0.69057121]
[1768063381946,0.19130865,909.9,909.11,0.69057121]
[1768063382148,0.19130865,909.9,909.12,0.69057121]
[1768063382351,0.19130865,909.9,909.13,0.69057121]
[1768063382653,0.19130865,909.9,909.14,0.69057121]
[1768063382847,0.19130865,909.9,909.15,0.69057121]
[1768063383054,0.19130865,909.9,909.16,0.69057121]
[1768063383249,0.19130865,909.9,909.17,0.69057121]
[1768063383550,0.19130865,909.9,909.18,0.69057121]
[1768063383750,0.19130865,909.9,909.19,0.69057121]
[1768063383949,0.19130865,909.9,909.2,0.69057121]
[1768063384154,0.19130865,909.9,909.21,0.69057121]
[1768063384355,0.19130865,909.9,909.22,0.69057121]
[1768063384650,0.19130865,909.9,909.23,0.69057121]
[1768063384952,0.19130865,909.9,909.24,0.69057121]
[1768063385151,0.19130865,909.9,909.25,0.69057121]
[1768063385350,0.19130865,909.9,909.26,0.69057121]
[1768063385556,0.19130865,909.9,909.27,0.69057121]
[1768063385754,0.19130865,909.9,909.28,0.69057121]
[1768063386053,0.19130865,909.9,909.29,0.69057121]
[1768063386252,0.19130865,909.9,909.3,0.69057121]
[1768063386456,0.19130865,909.9,909.31,0.69057121]
[1768063386652,0.19130865,909.9,909.32,0.69057121]
[1768063386856,0.19130865,909.9,909.33,0.69057121]
[1768063387153,0.19130865,909.9,909.34,0.69057121]
[1768063387354,0.19130865,909.9,909.35,0.69057121]
[1768063387550,0.19130865,909.9,909.06,0.82510904]
[1768063387756,0.19130865,909.9,909.07,0.68974354]
[1768063387956,0.19130865,909.9,909.08,0.68974354]
[1768063388155,2.91244,910.05,909.09,0.68974354]
[1768063388355,2.91244,910.05,909.1,0.68974354]
[1768063388556,0.19129919,910.02,909.11,0.68974354]
[1768063388857,0.19129919,910.02,909.12,0.68974354]
[1768063389055,0.19129919,910.02,909.13,0.68974354]
[1768063389258,0.19129919,910.02,909.14,0.68974354]
[1768063389454,0.19129919,910.02,909.15,0.68974354]
[1768063389654,0.19129919,910.02,909.16,0.68974354]
[1768063389855,0.19129919,910.02,909.17,0.68974354]
[1768063390054,0.19129919,910.02,909.18,0.68974354]
[1768063390255,0.19129919,910.02,909.19,0.68974354]
[1768063390454,0.19129919,910.02,909.2,0.68974354]
[1768063390654,0.19129919,910.02,909.21,0.68974354]
[1768063390857,0.19129919,910.02,909.22,0.68974354]
[1768063391054,0.19129919,910.02,909.23,0.68974354]
[1768063391256,0.19129919,910.02,909.24,0.68974354]
[1768063391456,0.19129919,910.02,909.25,0.68974354]
[1768063391656,0.19129919,910.02,909.26,0.68974354]
[1768063391855,0.19129919,910.02,909.27,0.68974354]
[1768063392058,0.19129919,910.02,909.28,0.68974354]
[1768063392257,0.19129919,910.02,909.29,0.68974354]
[1768063392460,0.19129919,910.02,909.3,0.68974354]
[1768063392656,0.19129919,910.02,909.31,0.68974354]
[1768063392858,0.19129919,910.02,909.1,1.8]
[1768063393055,0.19129919,910.02,909.11,0.68922536]
[1768063393255,0.19129919,910.02,909.12,0.68922536]
[1768063393456,0.19129919,910.02,909.13,0.68922536]
[1768063393660,0.19129919,910.02,909.14,0.68922536]
[1768063393860,0.19129919,910.02,909.15,0.68922536]
[1768063394158,0.19129919,910.02,909.16,0.68922536]
[1768063394356,0.19129919,910.02,909.17,0.68922536]
[1768063394560,0.19129919,910.02,909.18,0.68922536]
[1768063394760,0.19129919,910.02,909.19,0.68922536]
[1768063394956,0.19129919,910.02,909.2,0.68922536]
[1768063395158,0.19129919,910.02,909.21,0.68922536]
[1768063395356,0.19129919,910.02,909.22,0.68922536]
[1768063395660,0.19129919,910.02,909.1,1.8]
[1768063395661,0.19129919,910.02,909.23,0.68922536]
[1768063395961,0.19129919,910.02,909.24,0.68922536]
[1768063396257,0.19129919,910.02,909.25,0.68922536]
[1768063396461,0.19129919,910.02,909.26,0.68922536]
[1768063396760,0.19129919,910.02,909.1,1.8]
[1768063396961,0.19129919,910.02,909.11,0.68911392]
[1768063397256,0.19129919,910.02,909.12,0.68911392]
[1768063397557,0.19129919,910.02,909.13,0.68911392]
[1768063397756,0.19129919,910.02,909.14,0.68911392]
[1768063397960,0.19129919,910.02,909.15,0.68911392]
[1768063398158,0.19129919,910.02,909.16,0.68911392]
[1768063398361,0.19129919,910.02,909.1,1.8]
[1768063398656,0.19129919,910.02,909.11,0.68921186]
[1768063398861,0.19129919,910.02,909.12,0.68921186]
[1768063399163,0.19129919,910.02,909.13,0.68921186]
[1768063399457,0.19129919,910.02,909.14,0.68921186]
[1768063399663,0.19129919,910.02,909.15,0.68921186]
[1768063399859,0.19129919,910.02,909.16,0.68921186]
[1768063400059,0.19129919,910.02,909.1,1.8]
[1768063400260,0.19129919,910.02,909.11,0.68921753]
[1768063400460,0.19129919,910.02,909.12,0.68921753]
[1768063400763,0.19129919,910.02,909.13,0.68921753]
[1768063400964,0.19129919,910.02,909.14,0.68921753]
[1768063401166,0.19129919,910.02,909.15,0.68921753]
[1768063401459,0.19129919,910.02,909.16,0.68921753]
[1768063401665,0.19129919,910.02,909.17,0.68921753]
[1768063401864,0.19129919,910.02,909.18,0.68921753]
[1768063402062,0.19129919,910.02,909.19,0.68921753]
[1768063402264,0.19129919,910.02,909.1,1.8]
[1768063402265,0.19129919,910.02,909.2,0.68926884]
[1768063402466,0.19129919,910.02,909.1,1.8]
[1768063402663,0.19129919,910.02,909.11,0.68926878]
[1768063402867,0.19129919,910.02,909.12,0.68926878]
[1768063403068,0.19129919,910.02,909.13,0.68926878]
[1768063403363,0.19129919,910.02,909.14,0.68926878]
[1768063403565,0.19129919,910.02,909.15,0.68926878]
[1768063403765,0.19129919,910.02,909.16,0.68926878]
[1768063403969,0.19129919,910.02,909.17,0.68926878]
[1768063404167,0.19129919,910.02,909.18,0.68926878]
[1768063404370,0.19129919,910.02,909.19,0.68926878]
[1768063404568,0.19129919,910.02,909.2,0.68926878]
[1768063404769,0.19129919,910.02,909.1,1.8]
[1768063404971,0.19129919,910.02,909.11,0.68930761]
[1768063405171,0.19129919,910.02,909.12,0.68930761]
[1768063405373,0.19129919,910.02,909.13,0.68930761]
[1768063405572,0.19129919,910.02,909.14,0.68930761]
[1768063405770,0.19129919,910.02,909.15,0.68930761]
[1768063405972,0.19129919,910.02,909.16,0.68930761]
[1768063406174,0.19129919,910.02,909.17,0.68930761]
[1768063406372,0.19129919,910.02,909.18,0.68930761]
[1768063406573,0.19129919,910.02,909.19,0.68930761]
[1768063406776,0.19129919,910.02,909.2,0.68930761]
[1768063406972,0.19129919,910.02,909.1,1.8]
[1768063407174,0.19129919,910.02,909.11,0.68934976]
[1768063407372,0.19129919,910.02,909.12,0.68934976]
[1768063407676,0.19129919,910.02,909.13,0.68934976]
[1768063407976,0.19129919,910.02,909.14,0.68934976]
[1768063408276,0.19129919,910.02,909.15,0.68934976]
[1768063408472,0.19129919,910.02,909.16,0.68934976]
[1768063408673,0.19129919,910.02,909.1,1.8]
[1768063408876,0.19129919,910.02,909.11,0.68936563]
[1768063409175,0.19129919,910.02,909.12,0.68936563]
[1768063409372,0.19129919,910.02,909.13,0.68936563]
[1768063409572,0.19129919,910.02,909.14,0.68936563]
[1768063409776,0.19129919,910.02,909.15,0.68936563]
[1768063410074,0.19129919,910.02,909.1,1.8]
[1768063417679,0.19129919,910.02,908.48,0.82510904]
[1768063417879,0.19129919,910.02,908.49,0.68777106]
[1768063418075,0.19129919,910.02,908.5,0.68777106]
[1768063418379,0.19129919,910.02,908.51,0.68777106]
[1768063418679,0.19129919,910.02,908.52,0.68777106]
[1768063418880,0.19129919,910.02,908.53,0.68777106]
[1768063419075,0.19129919,910.02,908.52,4.06593765]
[1768063419076,0.19129919,910.02,908.54,0.68777106]
[1768063419274,0.19129919,910.02,908.55,0.68777106]
[1768063419473,0.19129919,910.02,908.52,4.06593765]
[1768063419474,0.19129919,910.02,908.56,0.68777106]
[1768063419679,0.19129919,910.02,908.57,0.68777106]
[1768063419876,0.19129919,910.02,908.58,0.68777106]
[1768063420080,0.19129919,910.02,908.59,0.68777106]
[1768063420381,0.19129919,910.02,908.6,0.68777106]
[1768063420677,0.19129919,910.02,908.61,0.68777106]
[1768063420878,0.19129919,910.02,908.62,0.68777106]
[1768063421184,0.19129919,910.02,908.63,0.68777106]
[1768063421378,0.19129919,910.02,908.64,0.68777106]
[1768063421574,0.19129919,910.02,908.59,1.512]
[1768063421780,0.19129919,910.02,908.6,0.68719182]
[1768063421981,0.19129919,910.02,908.61,0.68719182]
[1768063422180,0.19129919,910.02,908.62,0.68719182]
[1768063422384,0.19129919,910.02,908.63,0.68719182]
[1768063422578,0.19129919,910.02,908.64,0.68719182]
[1768063422878,0.19129919,910.02,908.59,1.512]
[1768063423082,0.19129919,910.02,908.6,0.68708455]
[1768063423283,0.19129919,910.02,908.61,0.68708455]
[1768063423577,0.19129919,910.02,908.62,0.68708455]
[1768063423779,0.19129919,910.02,908.63,0.68708455]
[1768063423980,0.19129919,910.02,908.59,1.512]
[1768063424184,0.19129919,910.02,908.6,0.68699685]
[1768063424380,0.19129919,910.02,908.61,0.68699685]
[1768063424584,0.19129919,910.02,908.62,0.68699685]
[1768063424879,0.19129919,910.02,908.63,0.68699685]
[1768063425080,0.19129919,910.02,908.59,1.512]
[1768063425286,0.19129919,910.02,908.6,0.68692417]
[1768063425486,0.19129919,910.02,908.61,0.68692417]
[1768063425680,0.19129919,910.02,908.62,0.68692417]
[1768063425885,0.19129919,910.02,908.63,0.68692417]
[1768063426086,0.19129919,910.02,908.59,1.512]
[1768063426281,0.19129919,910.02,908.6,0.68688769]
[1768063426483,0.19129919,910.02,908.61,0.68688769]
[1768063426683,0.19129919,910.02,908.62,0.68688769]
[1768063426887,0.19129919,910.02,908.59,1.512]
[1768063427087,0.19129919,910.02,908.6,0.68683274]
[1768063427285,0.19129919,910.02,908.61,0.68683274]
[1768063427485,0.19129919,910.02,908.62,0.68683274]
[1768063427683,0.19129919,910.02,908.59,1.512]
[1768063427886,0.19129919,910.02,908.6,0.68678618]
[1768063428087,0.19129919,910.02,908.61,0.68678618]
[1768063428286,0.19129919,910.02,908.62,0.68678618]
[1768063428486,0.19129919,910.02,908.59,1.512]
[1768063428688,0.19129919,910.02,908.6,0.6867482]
[1768063428887,0.19129919,910.02,908.61,0.6867482]
[1768063429088,0.19129919,910.02,908.62,0.6867482]
[1768063429383,0.19129919,910.02,908.59,1.512]
[1768063429584,0.19129919,910.02,908.6,0.68671853]
[1768063429784,0.19129919,910.02,908.61,0.68671853]
[1768063429983,0.19129919,910.02,908.62,0.68671853]
[1768063430185,0.19129919,910.02,908.59,1.512]
[1768063430484,0.19129919,910.02,908.6,0.68671123]
[1768063430683,0.19129919,910.02,908.61,0.68671123]
[1768063430987,0.19129919,910.02,908.59,1.512]
[1768063431285,0.19129919,910.02,908.6,0.68669714]
[1768063431488,0.19129919,910.02,908.61,0.68669714]
[1768063431687,0.19129919,910.02,908.62,0.68669714]
[1768063431987,0.19129919,910.02,908.63,0.68669714]
[1768063432184,0.19129919,910.02,908.64,0.68669714]
[1768063432388,0.19129919,910.02,908.65,0.68669714]
[1768063432587,0.19129919,910.02,908.66,0.68669714]
[1768063432787,0.19129919,910.02,908.59,1.512]
[1768063432788,0.19129919,910.02,908.67,0.68669714]
[1768063432988,0.19129919,910.02,908.68,0.68669714]
[1768063433186,0.19129919,910.02,908.69,0.68669714]
[1768063433385,0.19129919,910.02,908.7,0.68669714]
[1768063433588,0.19129919,910.02,908.71,0.68669714]
[1768063433786,0.19129919,910.02,908.72,0.68669714]
[1768063433990,0.19129919,910.02,908.73,0.68669714]
[1768063434188,0.19129919,910.02,908.59,1.512]
[1768063434385,0.19129919,910.02,908.6,0.68685569]
[1768063434690,0.19129919,910.02,908.61,0.68685569]
[1768063434985,0.19129919,910.02,908.62,0.68685569]
[1768063435189,0.19129919,910.02,908.63,0.68685569]
[1768063435484,0.19129919,910.02,908.59,1.512]
[1768063435485,0.19129919,910.02,908.64,0.68685569]
[1768063435684,0.19129919,910.02,908.65,0.68685569]
[1768063435889,0.19129919,910.02,908.66,0.68685569]
[1768063436084,0.19129919,910.02,908.67,0.68685569]
[1768063436286,0.19129919,910.02,908.68,0.68685569]
[1768063436489,0.19129919,910.02,908.69,0.68685569]
[1768063436789,0.19129919,910.02,908.59,1.512]
[1768063436790,0.19129919,910.02,908.7,0.68685569]
[1768063436983,0.19129919,910.02,908.71,0.68685569]
[1768063437186,0.19129919,910.02,908.72,0.68685569]
[1768063437389,0.19129919,910.02,908.73,0.68685569]
[1768063437684,0.19129919,910.02,908.74,0.68685569]
[1768063437887,0.19129919,910.02,908.75,0.68685569]
[1768063438088,0.19129919,910.02,908.59,1.512]
[1768063438290,0.19129919,910.02,908.6,0.68714246]
[1768063438592,0.19129919,910.02,908.61,0.68714246]
[1768063438887,0.19129919,910.02,908.62,0.68714246]
[1768063439092,0.19129919,910.02,908.63,0.68714246]
[1768063439290,0.19129919,910.02,908.64,0.68714246]
[1768063439491,0.19129919,910.02,908.65,0.68714246]
[1768063439691,0.19129919,910.02,908.59,1.512]
[1768063439692,0.19129919,910.02,908.66,0.68714246]
[1768063439892,0.19129919,910.02,908.67,0.68714246]
[1768063440092,0.19129919,910.02,908.68,0.68714246]
[1768063440389,0.19129919,910.02,908.69,0.68714246]
[1768063440692,0.19129919,910.02,908.7,0.68714246]
[1768063440892,0.19129919,910.02,908.71,0.68714246]
[1768063441090,0.19129919,910.02,908.72,0.68714246]
[1768063441287,0.19129919,910.02,908.73,0.68714246]
[1768063441592,0.19129919,910.02,908.74,0.68714246]
[1768063441793,0.19129919,910.02,908.75,0.68714246]
[1768063441993,0.19129919,910.02,908.76,0.68714246]
[1768063442294,0.19129919,910.02,908.77,0.68801651]
[1768063442593,0.19129919,910.02,908.59,1.512]
[1768063442790,0.19129919,910.02,908.6,0.68801661]
[1768063442993,0.19129919,910.02,908.61,0.68801661]
[1768063443193,0.19129919,910.02,908.62,0.68801661]
[1768063443389,0.19129919,910.02,908.63,0.68801661]
[1768063443597,0.19129919,910.02,908.64,0.68801661]
[1768063443894,0.19129919,910.02,908.65,0.68801661]
[1768063444191,0.19129919,910.02,908.66,0.68801661]
[1768063444391,0.19129919,910.02,908.67,0.68801661]
[1768063444590,0.19129919,910.02,908.68,0.68801661]
[1768063444790,0.19129919,910.02,908.69,0.68801661]
[1768063444992,0.19129919,910.02,908.7,0.68801661]
[1768063445194,0.19129919,910.02,908.71,0.68801661]
[1768063445394,0.19129919,910.02,908.72,0.68801661]